fUSD/lending_fUSD_20241125
["ID","MTS","AMOUNT","RATE_DAILY","PERIOD"]
[343292429,1732547443506,-197.03308125,0.00043835,30]
[343292431,1732547443515,-500.0,0.00043835,30]
[343292433,1732547443524,-500.0,0.00043835,30]
[343292435,1732547443533,-500.0,0.00043835,30]
[343292436,1732547443543,-500.0,0.00043835,30]
[343292438,1732547443551,-500.0,0.00043835,30]
[343292440,1732547443560,-500.0,0.00043835,30]
[343292443,1732547443570,-500.0,0.00043835,30]
[343292446,1732547443578,-500.0,0.00043835,30]
[343292447,1732547443588,-500.0,0.00043835,30]
[343292448,1732547443597,-500.0,0.00043835,30]
[343292449,1732547443607,-236.34919204,0.00043835,30]
[343292450,1732547443616,-536.24,0.00043835,30]
[343292451,1732547443626,-500.0,0.00043835,30]
[343292452,1732547443635,-500.0,0.00043835,30]
[343292453,1732547443651,-500.0,0.00043835,30]
[343292454,1732547443661,-633.35,0.00043835,30]
[343292455,1732547443670,-390.13,0.00043835,30]
[343292456,1732547443680,-500.0,0.00043835,30]
[343292457,1732547443689,-500.0,0.00043835,30]
[343292458,1732547443699,-500.0,0.00043835,30]
[343292459,1732547443708,-162.355803,0.00043835,30]
[343292460,1732547443718,-500.0,0.00043835,30]
[343292461,1732547443728,-500.0,0.00043835,30]
[343292462,1732547443737,-500.0,0.00043835,30]
[343292463,1732547443747,-500.0,0.00043835,30]
[343292464,1732547443756,-500.0,0.00043835,30]
[343292465,1732547443767,-500.0,0.00043835,30]
[343292466,1732547443777,-500.0,0.00043835,30]
[343292467,1732547443786,-500.0,0.00043835,30]
[343292468,1732547443795,-500.0,0.00043835,30]
[343292469,1732547443804,-500.0,0.00043835,30]
[343292470,1732547443813,-500.0,0.00043835,30]
[343292471,1732547443822,-500.0,0.00043835,30]
[343292472,1732547443832,-500.0,0.00043835,30]
[343292473,1732547443841,-500.0,0.00043835,30]
[343292474,1732547443851,-500.0,0.00043835,30]
[343292475,1732547443860,-500.0,0.00043835,30]
[343292476,1732547443869,-500.0,0.00043835,30]
[343292477,1732547443878,-589.19878291,0.00043835,30]
[343292478,1732547443888,-234.56640564,0.00043835,30]
[343292479,1732547443901,-567.1,0.00043835,30]
[343292480,1732547443910,-500.0,0.00043835,30]
[343292481,1732547443919,-589.28,0.00043835,30]
[343292482,1732547443929,-179.89784549,0.00043835,30]
[343292483,1732547443938,-154.91847569,0.00043835,30]
[343292484,1732547443947,-500.0,0.00043835,30]
[343292485,1732547443956,-500.0,0.00043835,30]
[343292486,1732547443966,-500.0,0.00043835,30]
[343292487,1732547443975,-500.0,0.00043835,30]
[343292488,1732547443984,-500.0,0.00043835,30]
[343292489,1732547443993,-496.29,0.00043835,30]
[343292490,1732547444003,-505.82052425,0.00043835,30]
[343292491,1732547444012,-500.0,0.00043835,30]
[343292492,1732547444021,-500.0,0.00043835,30]
[343292493,1732547444031,-500.0,0.00043835,30]
[343292494,1732547444040,-500.0,0.00043835,30]
[343292495,1732547444050,-500.0,0.00043835,30]
[343292496,1732547444060,-500.0,0.00043835,30]
[343292497,1732547444069,-500.0,0.00043835,30]
[343292498,1732547444078,-500.0,0.00043835,30]
[343292499,1732547444091,-500.0,0.00043835,30]
[343292500,1732547444101,-727.57,0.00043835,30]
[343292501,1732547444110,-184.5608607,0.00043835,30]
[343292502,1732547444119,-500.0,0.00043835,30]
[343292503,1732547444130,-500.0,0.00043835,30]
[343292504,1732547444140,-500.0,0.00043835,30]
[343292505,1732547444153,-500.0,0.00043835,30]
[343292506,1732547444164,-500.0,0.00043835,30]
[343292507,1732547444173,-500.0,0.00043835,30]
[343292508,1732547444183,-500.0,0.00043835,30]
[343292509,1732547444198,-500.0,0.00043835,30]
[343292510,1732547444220,-500.0,0.00043835,30]
[343292511,1732547444232,-544.36320497,0.00043835,30]
[343292512,1732547444244,-500.0,0.00043835,30]
[343292513,1732547444254,-500.0,0.00043835,30]
[343292514,1732547444265,-500.0,0.00043835,30]
[343292515,1732547444275,-500.0,0.00043835,30]
[343292516,1732547444286,-500.0,0.00043835,30]
[343292517,1732547444296,-500.0,0.00043835,30]
[343292518,1732547444307,-500.0,0.00043835,30]
[343292519,1732547444316,-500.0,0.00043835,30]
[343292520,1732547444325,-500.0,0.00043835,30]
[343292521,1732547444334,-500.0,0.00043835,30]
[343292522,1732547444344,-500.0,0.00043835,30]
[343292523,1732547444353,-500.0,0.00043835,30]
[343292524,1732547444362,-500.0,0.00043835,30]
[343292525,1732547444371,-500.0,0.00043835,30]
[343292526,1732547444381,-518.71,0.00043835,30]
[343292527,1732547444390,-500.0,0.00043835,30]
[343292528,1732547444401,-500.0,0.00043835,30]
[343292529,1732547444410,-500.0,0.00043835,30]
[343292530,1732547444419,-544.43,0.00043835,30]
[343292531,1732547444429,-500.0,0.00043835,30]
[343292532,1732547444439,-500.0,0.00043835,30]
[343292533,1732547444448,-500.0,0.00043835,30]
[343292534,1732547444457,-500.0,0.00043835,2]
[343292535,1732547444467,-500.0,0.00043835,2]
[343292536,1732547444477,-500.0,0.00043835,30]
[343292537,1732547444486,-500.0,0.00043835,30]
[343292538,1732547444495,-500.0,0.00043835,30]
[343292539,1732547444504,-500.0,0.00043835,30]
[343292540,1732547444513,-500.0,0.00043835,30]
[343292541,1732547444523,-500.0,0.00043835,23]
[343292542,1732547444532,-500.0,0.00043835,30]
[343292543,1732547444541,-500.0,0.00043835,30]
[343292544,1732547444551,-1592.56,0.00043835,30]
[343292545,1732547444561,-500.0,0.00043835,30]
[343292546,1732547444571,-385.70195131,0.00043835,30]
[343292547,1732547444580,-500.0,0.00043835,30]
[343292548,1732547444590,-503.92561738,0.00043835,30]
[343292549,1732547444600,-500.0,0.00043835,30]
[343292550,1732547444610,-500.0,0.00043835,30]
[343292551,1732547444620,-500.0,0.00043835,30]
[343292552,1732547444629,-500.0,0.00043835,30]
[343292553,1732547444639,-500.0,0.00043835,30]
[343292554,1732547444654,-300.47933283,0.00043835,30]
[343292555,1732547444663,-500.0,0.00043835,30]
[343292556,1732547444672,-500.0,0.00043835,30]
[343292557,1732547444682,-500.0,0.00043835,30]
[343292558,1732547444691,-500.0,0.00043835,30]
[343292559,1732547444700,-500.0,0.00043835,30]
[343292560,1732547444710,-383.79810181,0.00043835,120]
[343292561,1732547444719,-500.0,0.00043835,30]
[343292562,1732547444729,-504.35482762,0.00043835,30]
[343292563,1732547444738,-500.0,0.00043835,30]
[343292564,1732547444749,-500.0,0.00043835,30]
[343292565,1732547444759,-228.77726993,0.00043835,30]
[343292566,1732547444769,-500.0,0.00043835,30]
[343292567,1732547444779,-500.0,0.00043835,30]
[343292568,1732547444788,-500.0,0.00043835,30]
[343292569,1732547444797,-500.0,0.00043835,30]
[343292570,1732547444807,-500.0,0.00043835,30]
[343292571,1732547444816,-500.0,0.00043835,30]
[343292572,1732547444826,-500.0,0.00043835,30]
[343292573,1732547444836,-319.68994529,0.00043835,30]
[343292574,1732547444845,-505.92601527,0.00043835,30]
[343292575,1732547444855,-500.0,0.00043835,30]
[343292576,1732547444865,-500.0,0.00043835,30]
[343292577,1732547444874,-500.0,0.00043835,30]
[343292578,1732547444883,-500.0,0.00043835,30]
[343292579,1732547444894,-502.78721904,0.00043835,30]
[343292580,1732547444903,-500.0,0.00043835,30]
[343292581,1732547444912,-500.0,0.00043835,30]
[343292582,1732547444920,-500.0,0.00043835,30]
[343292583,1732547444930,-500.0,0.00043835,30]
[343292584,1732547444938,-500.0,0.00043835,30]
[343292585,1732547444947,-500.0,0.00043835,30]
[343292586,1732547444957,-500.0,0.00043835,30]
[343292587,1732547444967,-500.0,0.00043835,30]
[343292588,1732547444976,-500.0,0.00043835,30]
[343292589,1732547444985,-500.0,0.00043835,30]
[343292590,1732547444993,-500.0,0.00043835,30]
[343292591,1732547445003,-500.0,0.00043835,30]
[343292592,1732547445012,-500.0,0.00043835,30]
[343292593,1732547445022,-500.0,0.00043835,30]
[343292594,1732547445032,-769.21,0.00043835,30]
[343292595,1732547445041,-500.0,0.00043835,30]
[343292596,1732547445051,-500.0,0.00043835,30]
[343292597,1732547445061,-500.0,0.00043835,30]
[343292598,1732547445070,-500.0,0.00043835,30]
[343292599,1732547445079,-730.17,0.00043835,30]
[343292600,1732547445090,-500.0,0.00043835,30]
[343292601,1732547445099,-500.0,0.00043835,30]
[343292602,1732547445112,-500.0,0.00043835,30]
[343292603,1732547445122,-592.84865635,0.00043835,30]
[343292604,1732547445131,-500.0,0.00043835,30]
[343292605,1732547445145,-500.0,0.00043835,30]
[343292606,1732547445154,-507.8,0.00043835,30]
[343292607,1732547445164,-500.0,0.00043835,30]
[343292608,1732547445174,-1364.66,0.00043835,30]
[343292609,1732547445185,-500.0,0.00043835,30]
[343292610,1732547445196,-702.5,0.00043835,30]
[343292611,1732547445206,-500.0,0.00043835,30]
[343292612,1732547445216,-500.0,0.00043835,30]
[343292613,1732547445225,-500.0,0.00043835,30]
[343292614,1732547445235,-500.0,0.00043835,30]
[343292615,1732547445244,-1000.0,0.00043835,30]
[343292616,1732547445254,-500.0,0.00043835,30]
[343292617,1732547445264,-500.0,0.00043835,30]
[343292618,1732547445274,-500.0,0.00043835,30]
[343292619,1732547445283,-500.0,0.00043835,30]
[343292620,1732547445292,-500.0,0.00043835,30]
[343292621,1732547445302,-1951.71,0.00043835,30]
[343292622,1732547445312,-500.0,0.00043835,30]
[343292623,1732547445322,-500.0,0.00043835,30]
[343292624,1732547445333,-500.0,0.00043835,30]
[343292625,1732547445344,-500.0,0.00043835,30]
[343292626,1732547445354,-500.0,0.00043835,30]
[343292627,1732547445363,-637.41,0.00043835,30]
[343292628,1732547445373,-500.0,0.00043835,30]
[343292630,1732547445383,-507.9,0.00043835,30]
[343292632,1732547445397,-500.0,0.00043835,30]
[343292634,1732547445407,-500.0,0.00043835,30]
[343292641,1732547445600,-503.6364232,0.00043835,30]
[343292642,1732547445610,-412.88251667,0.00043835,30]
[343292643,1732547445620,-500.0,0.00043835,30]
[343292644,1732547445630,-500.0,0.00043835,30]
[343292645,1732547445640,-500.0,0.00043835,30]
[343292646,1732547445652,-500.0,0.00043835,30]
[343292647,1732547445661,-500.0,0.00043835,30]
[343292648,1732547445671,-500.0,0.00043835,30]
[343292649,1732547445681,-500.0,0.00043835,30]
[343292650,1732547445692,-500.0,0.00043835,30]
[343292651,1732547445702,-500.0,0.00043835,30]
[343292652,1732547445711,-500.0,0.00043835,30]
[343292653,1732547445721,-500.0,0.00043835,30]
[343292654,1732547445731,-541.44,0.00043835,30]
[343292655,1732547445741,-500.0,0.00043835,30]
[343292656,1732547445750,-500.0,0.00043835,30]
[343292657,1732547445760,-500.0,0.00043835,30]
[343292658,1732547445770,-501.8763671,0.00043835,30]
[343292659,1732547445779,-500.0,0.00043835,30]
[343292660,1732547445789,-500.0,0.00043835,30]
[343292661,1732547445798,-500.0,0.00043835,30]
[343292662,1732547445808,-500.0,0.00043835,30]
[343292663,1732547445819,-500.0,0.00043835,30]
[343292664,1732547445828,-500.0,0.00043835,30]
[343292665,1732547445838,-500.0,0.00043835,30]
[343292666,1732547445847,-500.0,0.00043835,30]
[343292667,1732547445856,-500.0,0.00043835,30]
[343292668,1732547445866,-500.0,0.00043835,30]
[343292669,1732547445875,-239.00867079,0.00043835,30]
[343292670,1732547445884,-2111.39,0.00043835,30]
[343292671,1732547445898,-500.0,0.00043835,30]
[343292672,1732547445907,-500.0,0.00043835,30]
[343292673,1732547445917,-500.0,0.00043835,30]
[343292674,1732547445928,-500.0,0.00043835,30]
[343292675,1732547445938,-500.0,0.00043835,30]
[343292676,1732547445948,-1239.48,0.00043835,30]
[343292677,1732547445958,-500.0,0.00043835,30]
[343292678,1732547445968,-500.0,0.00043835,30]
[343292679,1732547445978,-1215.86,0.00043835,30]
[343292680,1732547445988,-513.1595055,0.00043835,30]
[343292681,1732547445997,-500.0,0.00043835,30]
[343292682,1732547446007,-531.93,0.00043835,30]
[343292683,1732547446016,-500.0,0.00043835,30]
[343292684,1732547446025,-500.0,0.00043835,30]
[343292685,1732547446034,-1979.63,0.00043835,30]
[343292686,1732547446044,-500.0,0.00043835,30]
[343292687,1732547446053,-500.0,0.00043835,30]
[343292688,1732547446062,-560.28,0.00043835,30]
[343292689,1732547446071,-500.0,0.00043835,30]
[343292690,1732547446081,-591.62,0.00043835,30]
[343292691,1732547446094,-381.46634367,0.00043835,30]
[343292692,1732547446104,-500.0,0.00043835,30]
[343292693,1732547446113,-500.0,0.00043835,30]
[343292694,1732547446122,-504.6205477,0.00043835,30]
[343292695,1732547446132,-500.0,0.00043835,30]
[343292696,1732547446144,-500.0,0.00043835,30]
[343292697,1732547446154,-500.0,0.00043835,30]
[343292698,1732547446165,-500.0,0.00043835,30]
[343292699,1732547446176,-500.0,0.00043835,30]
[343292700,1732547446194,-500.0,0.00043835,30]
[343292701,1732547446208,-500.0,0.00043835,30]
[343292703,1732547446217,-687.97,0.00043835,30]
[343292705,1732547446226,-500.0,0.00043835,30]
[343292707,1732547446236,-500.0,0.00043835,30]
[343292708,1732547446245,-7526.42,0.00043835,30]
[343292709,1732547446255,-500.0,0.00043835,30]
[343292710,1732547446264,-643.97226761,0.00043835,30]
[343292711,1732547446275,-500.0,0.00043835,30]
[343292712,1732547446284,-500.0,0.00043835,30]
[343292713,1732547446294,-500.0,0.00043835,30]
[343292714,1732547446303,-500.0,0.00043835,30]
[343292715,1732547446312,-500.0,0.00043835,30]
[343292716,1732547446321,-500.0,0.00043835,30]
[343292717,1732547446330,-1749.5,0.00043835,30]
[343292718,1732547446340,-766.11,0.00043835,30]
[343292719,1732547446349,-500.0,0.00043835,30]
[343292720,1732547446358,-500.0,0.00043835,30]
[343292721,1732547446368,-500.0,0.00043835,30]
[343292722,1732547446377,-500.0,0.00043835,30]
[343292723,1732547446386,-610.67663488,0.00043835,30]
[343292724,1732547446398,-500.0,0.00043835,30]
[343292725,1732547446407,-500.0,0.00043835,30]
[343292726,1732547446417,-500.0,0.00043835,30]
[343292727,1732547446426,-941.44,0.00043835,21]
[343292728,1732547446436,-500.0,0.00043835,30]
[343292729,1732547446446,-500.0,0.00043835,30]
[343292730,1732547446456,-500.0,0.00043835,30]
[343292731,1732547446466,-500.0,0.00043835,30]
[343292732,1732547446475,-500.0,0.00043835,30]
[343292733,1732547446484,-500.0,0.00043835,30]
[343292734,1732547446494,-1550.06,0.00043835,30]
[343292735,1732547446505,-500.0,0.00043835,30]
[343292736,1732547446515,-500.0,0.00043835,30]
[343292737,1732547446524,-500.0,0.00043835,30]
[343292738,1732547446534,-506.49858858,0.00043835,30]
[343292739,1732547446543,-500.0,0.00043835,30]
[343292740,1732547446553,-500.0,0.00043835,30]
[343292741,1732547446562,-500.0,0.00043835,30]
[343292743,1732547446572,-500.0,0.00043835,30]
[343292745,1732547446581,-500.0,0.00043835,30]
[343292746,1732547446591,-500.0,0.00043835,30]
[343292748,1732547446600,-500.0,0.00043835,30]
[343292750,1732547446610,-2031.77,0.00043835,30]
[343292752,1732547446620,-2949.02,0.00043835,30]
[343292753,1732547446630,-500.0,0.00043835,30]
[343292754,1732547446641,-500.0,0.00043835,30]
[343292755,1732547446655,-500.0,0.00043835,30]
[343292756,1732547446666,-500.0,0.00043835,30]
[343292757,1732547446676,-1176.66,0.00043835,30]
[343292758,1732547446685,-500.0,0.00043835,30]
[343292759,1732547446695,-500.0,0.00043835,30]
[343292760,1732547446704,-500.0,0.00043835,30]
[343292761,1732547446715,-500.0,0.00043835,30]
[343292762,1732547446724,-2430.0,0.00043835,30]
[343292763,1732547446734,-500.60756127,0.00043835,30]
[343292764,1732547446744,-500.0,0.00043835,30]
[343292765,1732547446754,-511.14382507,0.00043835,30]
[343292766,1732547446763,-2004.37,0.00043835,30]
[343292767,1732547446773,-500.0,0.00043835,30]
[343292768,1732547446783,-855.38,0.00043835,30]
[343292769,1732547446792,-2669.14,0.00043835,30]
[343292770,1732547446802,-157.38,0.00043835,30]
[343292771,1732547446812,-500.0,0.00043835,30]
[343292772,1732547446821,-697.31,0.00043835,30]
[343292773,1732547446830,-500.0,0.00043835,30]
[343292774,1732547446842,-500.0,0.00043835,30]
[343292775,1732547446851,-500.0,0.00043835,30]
[343292776,1732547446860,-1381.28,0.00043835,30]
[343292777,1732547446870,-500.0,0.00043835,30]
[343292778,1732547446879,-2767.45,0.00043835,30]
[343292779,1732547446888,-978.03,0.00043835,30]
[343292780,1732547446901,-500.0,0.00043835,30]
[343292781,1732547446911,-500.0,0.00043835,30]
[343292782,1732547446921,-500.0,0.00043835,30]
[343292783,1732547446930,-334.18448691,0.00043835,30]
[343292784,1732547446939,-2500.0,0.00043835,120]
[343292785,1732547446949,-1907.07,0.00043835,30]
[343292786,1732547446959,-260.31205077,0.00043835,30]
[343292787,1732547446968,-500.0,0.00043835,30]
[343292788,1732547446978,-500.0,0.00043835,30]
[343292789,1732547446986,-500.0,0.00043835,30]
[343292790,1732547446995,-500.0,0.00043835,30]
[343292791,1732547447005,-500.0,0.00043835,30]
[343292792,1732547447014,-500.0,0.00043835,30]
[343292793,1732547447023,-655.65,0.00043835,30]
[343292794,1732547447032,-1624.96,0.00043835,30]
[343292795,1732547447042,-500.0,0.00043835,30]
[343292796,1732547447052,-500.0,0.00043835,30]
[343292797,1732547447061,-231.03,0.00043835,30]
[343292798,1732547447071,-500.0,0.00043835,30]
[343292799,1732547447081,-500.0,0.00043835,30]
[343292800,1732547447091,-500.0,0.00043835,30]
[343292801,1732547447102,-500.0,0.00043835,30]
[343292802,1732547447123,-1936.01,0.00043835,30]
[343292803,1732547447136,-500.0,0.00043835,30]
[343292804,1732547447156,-2327.26,0.00043835,120]
[343292805,1732547447165,-1459.97,0.00043835,30]
[343292806,1732547447175,-500.0,0.00043835,30]
[343292807,1732547447184,-500.0,0.00043835,30]
[343292808,1732547447193,-2419.19,0.00043835,30]
[343292809,1732547447202,-500.0,0.00043835,30]
[343292810,1732547447212,-500.0,0.00043835,30]
[343292811,1732547447222,-500.0,0.00043835,30]
[343292812,1732547447231,-500.0,0.00043835,30]
[343292813,1732547447243,-5916.66,0.00043835,30]
[343292814,1732547447253,-516.74,0.00043835,30]
[343292815,1732547447264,-500.0,0.00043835,30]
[343292816,1732547447273,-1000.0,0.00043835,10]
[343292817,1732547447283,-500.0,0.00043835,30]
[343292818,1732547447292,-151.0,0.00043835,14]
[343292819,1732547447302,-571.44,0.00043835,30]
[343292820,1732547447311,-151.0,0.00043835,14]
[343292821,1732547447320,-500.0,0.00043835,30]
[343292822,1732547447329,-500.0,0.00043835,30]
[343292823,1732547447339,-526.45392405,0.00043835,30]
[343292824,1732547447348,-238.80300082,0.00043835,30]
[343292825,1732547447373,-500.0,0.00041034,2]
[343292826,1732547447383,-791.71699918,0.00043835,30]
[343292827,1732547447396,-500.0,0.00043835,30]
[343292828,1732547447405,-500.0,0.00043835,30]
[343292829,1732547447415,-500.0,0.00043835,30]
[343292830,1732547447425,-500.0,0.00043835,30]
[343292831,1732547447435,-2550.59431864,0.00043835,30]
[343292832,1732547447446,-480.99999996,0.00043835,30]
[343292833,1732547447457,-732.80000069,0.00043835,30]
[343292834,1732547447468,-69.73568071,0.00043835,30]
[343292835,1732547447478,-500.0,0.00043835,30]
[343292836,1732547447487,-500.0,0.00043835,30]
[343292837,1732547447496,-554.09327911,0.00043835,30]
[343292838,1732547447506,-500.0,0.00043835,30]
[343292839,1732547447515,-508.9809595,0.00043835,30]
[343292840,1732547447525,-500.0,0.00043835,30]
[343292841,1732547447534,-500.0,0.00043835,30]
[343292842,1732547447544,-500.0,0.00043835,30]
[343292843,1732547447553,-500.0,0.00043835,30]
[343292844,1732547447563,-188.93134,0.00043835,2]
[343292845,1732547447571,-500.0,0.00043835,30]
[343292846,1732547447581,-654.69982535,0.00043835,30]
[343292847,1732547447593,-1174.56017465,0.00043835,30]
[343292848,1732547447603,-244.534283,0.00043835,30]
[343292849,1732547447612,-162.925879,0.00043835,30]
[343292850,1732547447621,-154.589908,0.00043835,30]
[343292851,1732547447630,-217.85362139,0.00043835,30]
[343292852,1732547447645,-282.14637861,0.00043835,30]
[343292853,1732547447654,-500.0,0.00043835,30]
[343292854,1732547447664,-594.63137396,0.00043835,30]
[343292855,1732547447673,-500.0,0.00043835,30]
[343292856,1732547447683,-485.31650101,0.00043835,2]
[343292857,1732547447692,-500.0,0.00043835,30]
[343292858,1732547447701,-500.0,0.00043835,30]
[343292859,1732547447711,-500.0,0.00043835,2]
[343292860,1732547447722,-265.24,0.00043835,30]
[343292861,1732547447732,-4096.08235813,0.00043835,30]
[343292862,1732547447744,-1663.42764187,0.00043835,30]
[343292863,1732547447753,-500.0,0.00043835,30]
[343292864,1732547447763,-500.0,0.00043835,30]
[343292865,1732547447772,-1168.07,0.00043835,30]
[343292866,1732547447782,-500.0,0.00043835,2]
[343292867,1732547447792,-500.0,0.00043835,30]
[343292868,1732547447802,-500.0,0.00043835,30]
[343292869,1732547447811,-500.0,0.00043835,30]
[343292870,1732547447822,-2234.21,0.00043835,30]
[343292871,1732547447832,-601.89,0.00043835,30]
[343292872,1732547447841,-500.0,0.00043835,30]
[343292873,1732547447851,-500.0,0.00043835,30]
[343292874,1732547447860,-500.0,0.00043835,30]
[343292875,1732547447869,-253.27059495,0.00043835,30]
[343292876,1732547447879,-126.23793375,0.00043835,30]
[343292877,1732547447913,-373.76206625,0.00043835,30]
[343292878,1732547447923,-500.0,0.00043835,30]
[343292879,1732547447932,-500.0,0.00043835,30]
[343292880,1732547447942,-500.0,0.00043835,30]
[343292881,1732547447952,-2859.94,0.00043835,30]
[343292882,1732547447961,-500.0,0.00043835,30]
[343292883,1732547447971,-151.0,0.00043835,14]
[343292884,1732547447980,-45.34074168,0.00043835,30]
[343292885,1732547447992,-389.39371114,0.00043835,30]
[343292886,1732547448003,-65.26554718,0.00043835,30]
[343292887,1732547448012,-500.0,0.00043835,30]
[343292888,1732547448022,-389.6136873,0.00043859,2]
[343292889,1732547448032,-498.33498097,0.00043873,10]
[343292890,1732547448041,-502.52360902,0.00043873,10]
[343292891,1732547448051,-500.0,0.00043873,10]
[343292892,1732547448061,-259.52214457,0.00043883,13]
[343292893,1732547448071,-153.12,0.00043898,120]
[343292894,1732547448080,-2700.0,0.000439,16]
[343292895,1732547448091,-639.33,0.00044,2]
[343292896,1732547448104,-200.0,0.00044,120]
[343292897,1732547448113,-150.52,0.00044031,2]
[343292898,1732547448123,-150.0,0.00044044,2]
[343292899,1732547448134,-176.24067698,0.000441,10]
[343292900,1732547448147,-1000.0,0.000441,7]
[343292901,1732547448157,-500.0,0.00044108,30]
[343292902,1732547448167,-500.0,0.00044108,120]
[343292903,1732547448179,-500.0,0.00044109,30]
[343292904,1732547448190,-500.0,0.00044109,30]
[343292905,1732547448199,-500.0,0.00044109,30]
[343292906,1732547448209,-484.46059212,0.00044109,30]
[343292907,1732547448218,-500.0,0.00044109,30]
[343292908,1732547448228,-500.0,0.00044109,30]
[343292909,1732547448238,-500.0,0.00044109,30]
[343292910,1732547448247,-500.0,0.00044109,30]
[343292911,1732547448257,-500.0,0.00044109,30]
[343292912,1732547448267,-500.0,0.00044109,30]
[343292913,1732547448276,-500.0,0.00044109,30]
[343292914,1732547448286,-500.0,0.00044109,30]
[343292915,1732547448296,-500.0,0.00044109,30]
[343292916,1732547448305,-500.0,0.00044109,30]
[343292917,1732547448315,-500.0,0.00044109,30]
[343292918,1732547448324,-500.0,0.00044109,30]
[343292919,1732547448333,-500.0,0.00044109,30]
[343292920,1732547448343,-500.0,0.00044109,30]
[343292921,1732547448352,-500.0,0.00044109,2]
[343292922,1732547448362,-500.0,0.00044109,30]
[343292923,1732547448371,-308.0825245,0.00044109,30]
[343292924,1732547448381,-358.4363588,0.00044109,30]
[343292925,1732547448390,-209.26219078,0.00044109,30]
[343292926,1732547448403,-527.44211591,0.00044109,30]
[343292927,1732547448413,-500.0,0.00044109,30]
[343292928,1732547448423,-500.0,0.00044109,30]
[343292929,1732547448432,-500.0,0.00044109,30]
[343292930,1732547448442,-500.0,0.00044109,30]
[343292931,1732547448451,-504.02742292,0.00044109,30]
[343292932,1732547448460,-353.24832262,0.00044109,30]
[343292933,1732547448469,-500.0,0.00044109,30]
[343292934,1732547448478,-500.0,0.00044109,30]
[343292935,1732547448487,-500.0,0.00044109,30]
[343292936,1732547448497,-500.0,0.00044109,30]
[343292937,1732547448507,-500.0,0.00044109,30]
[343292938,1732547448517,-500.0,0.00044109,30]
[343292939,1732547448526,-500.0,0.00044109,30]
[343292940,1732547448536,-159.27843769,0.00044109,30]
[343292941,1732547448546,-500.0,0.00044109,2]
[343292942,1732547448556,-500.0,0.00044109,30]
[343292943,1732547448565,-275.85902707,0.00044109,30]
[343292944,1732547448575,-500.0,0.00044109,30]
[343292945,1732547448585,-500.0,0.00044109,30]
[343292946,1732547448595,-500.0,0.00044109,30]
[343292947,1732547448604,-500.0,0.00044109,30]
[343292948,1732547448614,-500.0,0.00044109,30]
[343292949,1732547448623,-500.0,0.00044109,30]
[343292950,1732547448633,-500.0,0.00044109,30]
[343292951,1732547448644,-500.0,0.00044109,30]
[343292952,1732547448663,-325.63538893,0.00044109,30]
[343292953,1732547448673,-500.0,0.00044109,30]
[343292954,1732547448685,-500.0,0.00044109,30]